fUST/lending_fUST_20251215
["ID","MTS","AMOUNT","RATE_DAILY","PERIOD"]
[398506339,1765763885677,500.0,0.00013273,2]
[398506340,1765763885760,-266.59539382,0.00013417,2]
[398506341,1765763886395,500.0,0.00013273,2]
[398506342,1765763887323,500.0,0.00013273,2]
[398506343,1765763888089,-2407.57241381,0.00013417,2]
[398506344,1765763893508,500.0,0.00013273,2]
[398506345,1765763894382,307.94,0.00012,2]
[398506346,1765763894652,307.94,0.000121,2]
[398506347,1765763895038,500.0,0.00013273,2]
[398506348,1765763895599,307.94,0.000121,2]
[398506349,1765763895983,307.94,0.000122,2]
[398506350,1765763896227,307.94,0.000122,2]
[398506351,1765763896540,307.94,0.000122,2]
[398506352,1765763896858,307.94,0.000123,2]
[398506353,1765763897170,307.94,0.000123,2]
[398506354,1765763897490,307.94,0.000124,2]
[398506355,1765763897775,307.94,0.000124,2]
[398506356,1765763898103,307.94,0.000125,2]
[398506357,1765763898371,307.94,0.000125,2]
[398506358,1765763898650,307.94,0.000125,2]
[398506359,1765763899195,181.64517238,0.000126,2]
[398506360,1765763899218,126.29482762,0.000126,2]
[398506361,1765763899308,307.94,0.000126,2]
[398506362,1765763899726,307.94,0.000127,2]
[398506363,1765763899816,5000.0,0.00013417,2]
[398506364,1765763900046,307.94,0.000127,2]
[398506365,1765763900358,307.94,0.000127,2]
[398506366,1765763900643,307.94,0.000128,2]
[398506367,1765763900973,307.94,0.000128,2]
[398506368,1765763901336,307.94,0.000129,2]
[398506369,1765763901661,307.94,0.000129,2]
[398506370,1765763901883,307.94,0.000129,2]
[398506371,1765763902145,307.94,0.00013,2]
[398506372,1765763902416,307.94,0.00013,2]
[398506373,1765763902684,307.94,0.000131,2]
[398506374,1765763902960,307.94,0.000131,2]
[398506375,1765763903316,307.94,0.000131,2]
[398506376,1765763903578,307.94,0.000132,2]
[398506377,1765763903864,307.94,0.000132,2]
[398506378,1765763904155,307.94,0.000133,2]
[398506379,1765763904423,307.94,0.000133,2]
[398506380,1765763904454,247.26253697,9.294e-05,2]
[398506381,1765763904984,307.94,0.000134,2]
[398506382,1765763905066,307.94,0.000134,2]
[398506383,1765763905125,247.26253697,0.00012927,2]
[398506384,1765763905332,307.94,0.000134,2]
[398506385,1765763915013,5000.0,0.00013417,2]
[398506386,1765763923259,2349.90492606,0.00013417,2]
[398506387,1765763923281,2650.09507394,0.00013417,2]
[398506388,1765763931280,5000.0,0.00013417,2]
[398506389,1765763939075,2349.91492606,0.00013417,2]
[398506390,1765763939100,2650.08507394,0.00013417,2]
[398506391,1765763941752,150.0,7.311e-05,2]
[398506392,1765763942148,150.0,7.659e-05,2]
[398506393,1765763942558,150.0,8.007e-05,2]
[398506394,1765763942970,150.0,8.356e-05,2]
[398506395,1765763943424,150.0,8.704e-05,2]
[398506396,1765763943712,500.0,0.00013273,2]
[398506397,1765763943759,500.09975796,0.00013273,2]
[398506398,1765763943799,150.0,9.052e-05,2]
[398506399,1765763944209,150.0,9.4e-05,2]
[398506400,1765763944598,159.1,9.748e-05,2]
[398506401,1765763944993,178.99,0.00010096,2]
[398506402,1765763945381,174.52144854,0.00010444,2]
[398506403,1765763947132,4787.21371956,0.00013417,2]
[398506404,1765763947155,212.78628044,0.00013417,2]
[398506405,1765763948130,150.04,0.00012,2]
[398506406,1765763948420,150.04,0.00012,2]
[398506407,1765763948722,150.04,0.000121,2]
[398506408,1765763949008,150.04,0.000121,2]
[398506409,1765763949313,150.04,0.000122,2]
[398506410,1765763949611,150.04,0.000122,2]
[398506411,1765763949915,150.04,0.000123,2]
[398506412,1765763950200,150.04,0.000123,2]
[398506413,1765763950459,369.264931,0.00013,2]
[398506414,1765763950509,150.04,0.000123,2]
[398506415,1765763950802,150.04,0.000124,2]
[398506416,1765763951712,150.04,0.000124,2]
[398506417,1765763951820,150.04,0.000125,2]
[398506418,1765763951928,150.04,0.000125,2]
[398506419,1765763952132,150.04,0.000125,2]
[398506420,1765763952437,150.04,0.000126,2]
[398506421,1765763952766,150.04,0.000126,2]
[398506422,1765763953102,150.04,0.000127,2]
[398506423,1765763953390,150.04,0.000127,2]
[398506424,1765763953783,150.04,0.000128,2]
[398506425,1765763954135,150.04,0.000128,2]
[398506426,1765763954506,150.04,0.000128,2]
[398506427,1765763954856,150.04,0.000129,2]
[398506428,1765763954891,5000.0,0.00013417,2]
[398506429,1765763955176,150.04,0.000129,2]
[398506430,1765763955510,150.04,0.00013,2]
[398506431,1765763955785,150.04,0.00013,2]
[398506432,1765763956055,150.04,0.00013,2]
[398506433,1765763956340,150.04,0.000131,2]
[398506434,1765763956604,150.04,0.000131,2]
[398506435,1765763956897,150.04,0.000132,2]
[398506436,1765763957219,150.04,0.000132,2]
[398506437,1765763957887,150.04,0.000133,2]
[398506438,1765763958039,150.04,0.000133,2]
[398506439,1765763958309,150.04,0.000133,2]
[398506440,1765763958645,150.04,0.000134,2]
[398506442,1765763958977,150.04,0.000134,2]
[398506443,1765763962883,1249.01,0.00013417,2]
[398506444,1765763962906,3750.99,0.00013417,2]
[398506445,1765763971208,5000.0,0.00013417,2]
[398506446,1765763979314,1249.02,0.00013417,2]
[398506447,1765763979337,3750.98,0.00013417,2]
[398506448,1765763987674,5000.0,0.00013417,2]
[398506449,1765763991257,1249.03,0.00013,2]
[398506450,1765763991278,750.97,0.00013,2]
[398506451,1765763995899,5000.0,0.00013417,2]
[398506452,1765764004118,4249.04,0.00013417,2]
[398506453,1765764004143,750.96,0.00013417,2]
[398506454,1765764008872,150.3,0.000111,2]
[398506455,1765764009782,150.3,0.000113,2]
[398506456,1765764010171,150.0,7.311e-05,2]
[398506457,1765764010328,150.3,0.000115,2]
[398506458,1765764010570,150.0,7.66e-05,2]
[398506459,1765764010635,150.3,0.000117,2]
[398506460,1765764010889,150.3,0.000119,2]
[398506461,1765764010975,150.0,8.008e-05,2]
[398506462,1765764011161,150.3,0.000121,2]
[398506463,1765764011416,150.0,8.356e-05,2]
[398506464,1765764011489,150.3,0.000123,2]
[398506465,1765764011816,150.3,0.000125,2]
[398506466,1765764012127,150.3,0.000127,2]
[398506467,1765764012174,5000.0,0.00013417,2]
[398506468,1765764012356,150.0,8.704e-05,2]
[398506469,1765764012585,150.3,0.000128,2]
[398506470,1765764012729,150.3,0.00013,2]
[398506471,1765764012771,150.0,9.052e-05,2]
[398506472,1765764013061,150.3,0.000132,2]
[398506473,1765764013185,167.14,9.4e-05,2]
[398506474,1765764013476,150.3,0.000134,2]
[398506475,1765764013565,191.01,9.748e-05,2]
[398506476,1765764013956,214.89,0.00010097,2]
[398506477,1765764015343,150.28,0.000111,2]
[398506478,1765764016681,238.77,0.00010445,2]
[398506479,1765764019874,5000.0,0.00013417,2]
[398506480,1765764022246,500.0,0.00013273,2]
[398506481,1765764023307,500.0,0.00013273,2]
[398506482,1765764027869,3396.07,0.00013417,2]
[398506483,1765764027892,1603.93,0.00013417,2]
[398506484,1765764035786,5000.0,0.00013417,2]
[398506485,1765764043980,3396.08,0.00013417,2]
[398506486,1765764044002,1603.92,0.00013417,2]
[398506487,1765764052350,5000.0,0.00013417,2]
[398506488,1765764060561,3396.09,0.00013417,2]
[398506489,1765764060581,1603.91,0.00013417,2]
[398506490,1765764064331,162.49,0.000111,2]
[398506491,1765764064690,162.49,0.000117,2]
[398506492,1765764064983,162.49,0.000123,2]
[398506493,1765764065312,162.49,0.000128,2]
[398506494,1765764065703,162.49,0.000134,2]
[398506495,1765764068150,5000.0,0.00013417,2]
[398506497,1765764077263,2583.65,0.00013417,2]
[398506498,1765764077286,2416.35,0.00013417,2]
[398506499,1765764084626,5000.0,0.00013417,2]
[398506500,1765764087146,150.0,7.133e-05,2]
[398506501,1765764087835,1135.52682972,0.00013417,2]
[398506502,1765764092659,1298.13317028,0.00013417,2]
[398506503,1765764092683,3701.86682972,0.00013417,2]
[398506504,1765764100989,5000.0,0.00013417,2]
[398506505,1765764109136,1298.14317028,0.00013417,2]
[398506506,1765764109158,3701.85682972,0.00013417,2]
[398506507,1765764117048,5000.0,0.00013417,2]
[398506508,1765764123673,501.10518498,0.00013273,2]
[398506509,1765764123845,430.75387517,0.00013273,2]
[398506510,1765764125535,366.29411013,0.00013417,2]
[398506511,1765764125557,4633.70588987,0.00013417,2]
[398506512,1765764133357,5000.0,0.00013417,2]
[398506513,1765764139998,366.30411013,0.00013273,2]
[398506514,1765764140019,133.69588987,0.00013273,2]
[398506515,1765764141675,5000.0,0.00013417,2]
[398506516,1765764149354,4866.31411013,0.00013417,2]
[398506517,1765764149377,133.68588987,0.00013417,2]
[398506518,1765764158346,3066.34491234,0.00013417,2]
[398506519,1765764166184,5000.0,0.00013417,2]
[398506521,1765764174297,1799.97919779,0.00013417,2]
[398506522,1765764174320,3200.02080221,0.00013417,2]
[398506523,1765764183732,504.41811205,0.00013273,2]
[398506524,1765764187051,504.06134986,0.00013273,2]
[398506525,1765764189488,5000.0,0.00013417,2]
[398506526,1765764197229,791.50973588,0.00013417,2]
[398506527,1765764197252,4208.49026412,0.00013417,2]
[398506528,1765764212365,5000.0,0.00013417,2]
[398506529,1765764215476,186.4896658,0.00012903,2]
[398506530,1765764220309,605.03007008,0.00013417,2]
[398506531,1765764220330,4394.96992992,0.00013417,2]
[398506532,1765764236006,5000.0,0.00013417,2]
[398506533,1765764243947,605.04007008,0.00013417,2]
[398506534,1765764248767,-658.18999563,0.00013417,2]
[398506535,1765764252054,-572.77762567,0.00013417,2]
[398506536,1765764254116,500.0,0.00013273,2]
[398506537,1765764256069,-410.73987981,0.00013417,2]
[398506538,1765764257761,-200.71541942,0.00013417,2]
[398506539,1765764259194,5000.0,0.0001341,2]
[398506540,1765764260790,-164.56013049,0.00013417,2]
[398506541,1765764263263,-152.8,0.00013417,2]
[398506542,1765764265994,-284.2171598,0.00013417,2]
[398506543,1765764268456,-159.46,0.00013417,2]
[398506544,1765764270156,-156.42,0.00013417,2]
[398506545,1765764271981,-218.29978092,0.00013417,2]
[398506546,1765764273101,-239.72608566,0.00013417,2]
[398506547,1765764275864,-334.69090485,0.00013417,2]
[398506548,1765764278036,-153.03,0.00013417,2]
[398506585,1765764281140,4500.01,0.0001341,2]
[398506587,1765764281163,499.99,0.0001341,2]
[398506590,1765764281773,-363.29,0.00013417,2]
[398506591,1765764283427,-282.20775618,0.00013417,2]
[398506592,1765764303411,500.76248979,0.00013273,2]
[398506593,1765764303892,5000.0,0.0001341,2]
[398506594,1765764305682,500.0,0.00013273,2]
[398506595,1765764306690,500.0,0.00013273,2]
[398506596,1765764308979,-43.83519149,0.00013417,2]
[398506597,1765764311720,5000.0,0.00013417,2]
[398506598,1765764320268,1443.79518726,0.00013417,2]
[398506601,1765764328143,3468.54442976,0.00013417,2]
[398506602,1765764328177,1531.45557024,0.00013417,2]
[398506603,1765764336393,3379.28815208,0.00013417,2]
[398506605,1765764343843,150.0,7.13e-05,2]
[398506606,1765764344220,4939.26627768,0.00013417,2]
[398506607,1765764344242,60.73372232,0.00013417,2]
[398506608,1765764344286,150.0,7.469e-05,2]
[398506609,1765764344688,150.0,7.809e-05,2]
[398506610,1765764345129,150.0,8.148e-05,2]
[398506611,1765764345523,150.0,8.488e-05,2]
[398506612,1765764352298,5000.0,0.00013417,2]
[398506613,1765764367542,3521.72596333,0.00013417,2]
[398506614,1765764374724,500.0,0.00013273,2]
[398506615,1765764375348,317.55031435,0.00013417,2]
[398506616,1765764375370,4682.44968565,0.00013417,2]
[398506617,1765764383347,5000.0,0.00013417,2]
[398506618,1765764385253,317.56031435,0.00013417,2]
[398506619,1765764385279,682.43968565,0.00013417,2]
[398506620,1765764386297,260.10092912,0.00013417,2]
[398506626,1765764398626,5000.0,0.00013417,2]
[398506627,1765764406387,3280.60109871,0.00013417,2]
[398506628,1765764409507,150.0,7.792e-05,2]
[398506629,1765764409808,150.0,8.163e-05,2]
[398506630,1765764410214,150.0,8.534e-05,2]
[398506631,1765764410673,150.0,8.905e-05,2]
[398506632,1765764411069,150.0,9.276e-05,2]
[398506633,1765764413095,26.86828652,0.00013013,2]
[398506634,1765764413119,342.36443698,0.00013013,2]
[398506635,1765764421495,5000.0,0.0001341,2]
[398506636,1765764426011,202.61246492,0.00012824,2]
[398506637,1765764426517,500.0,0.00013273,2]
[398506638,1765764426872,500.0,0.00013273,2]
[398506639,1765764444004,3455.0330981,0.0001341,2]
[398506640,1765764444027,1544.9669019,0.0001341,2]
[398506641,1765764445371,500.0,0.00013273,2]
[398506642,1765764445485,416.36,0.00013273,2]
[398506644,1765764466314,5000.0,0.0001341,2]
[398506646,1765764475620,150.0,7.783e-05,2]
[398506647,1765764476029,150.0,8.153e-05,2]
[398506648,1765764483350,283.59,9.99e-05,2]
[398506649,1765764488742,1955.0930981,0.0001341,2]
[398506650,1765764488765,3044.9069019,0.0001341,2]
[398506651,1765764495997,500.0,0.00013273,2]
[398506652,1765764511467,5000.0,0.0001341,2]
[398506653,1765764534760,5000.0,0.0001341,2]
[398506654,1765764544222,500.0,0.00013273,2]
[398506656,1765764547316,500.0,0.00013273,2]
[398506657,1765764547899,500.0,0.00013273,2]
[398506658,1765764557716,3500.01,0.0001341,2]
[398506659,1765764557737,1499.99,0.0001341,2]
[398506660,1765764580143,5000.0,0.0001341,2]
[398506661,1765764602872,5000.0,0.00013549,2]
[398506662,1765764619555,500.0,0.00013273,2]
[398506663,1765764625078,5000.0,0.00013409,2]
[398506665,1765764632010,-300.0,0.00013599,2]
[398506666,1765764632023,-300.0,0.00013599,2]
[398506667,1765764632034,-614.0,0.00013599,2]
[398506668,1765764632046,-1568.90137656,0.000136,2]
[398506669,1765764632063,-1209.10606598,0.000136,2]
[398506748,1765764638075,-545.178,0.000136,2]
[398506751,1765764638087,-6676.81455746,0.000136,2]
[398506753,1765764638099,-286.63410687,0.00013604,2]
[398506755,1765764638112,-300.0,0.00013673,2]
[398506757,1765764638122,-187.78693353,0.00013678,2]
[398506759,1765764638132,-1095.0,0.00013698,2]
[398506761,1765764638147,-900.46698,0.00013699,2]
[398506763,1765764638157,-1000.0,0.00013699,2]
[398506765,1765764638166,-500.0,0.00013699,2]
[398506767,1765764638176,-233.22326142,0.00013699,2]
[398506769,1765764638185,-500.0,0.00013699,2]
[398506771,1765764638195,-1001.0,0.00013812,2]
[398506773,1765764638204,-1200.0,0.0001382,2]
[398506775,1765764638214,-491.27843286,0.00013821,2]
[398506777,1765764638224,-1000.0,0.00013821,2]
[398506779,1765764638234,-877.79572791,0.00013821,2]
[398506781,1765764638247,-122.20427209,0.00013821,2]
[398506783,1765764638256,-1000.0,0.00013821,2]
[398506785,1765764638266,-500.0,0.00014,2]
[398506787,1765764638275,-500.0,0.000141,2]
[398506789,1765764638285,-239.0032397,0.00014177,2]
[398506791,1765764638294,-500.0,0.00014184,2]
[398506793,1765764638305,-2000.0,0.000142,3]
[398506795,1765764638314,-597.6917384,0.000142,2]
[398506798,1765764638331,-600.0,0.00014221,2]
[398506801,1765764638344,-1000.0,0.00014247,2]
[398506803,1765764638353,-1000.0,0.00014247,2]
[398506805,1765764638363,-250.0,0.00014259,2]
[398506807,1765764638373,-250.0,0.00014259,2]
[398506809,1765764638383,-250.0,0.00014259,2]
[398506811,1765764638393,-250.0,0.00014259,2]
[398506813,1765764638402,-250.0,0.00014259,2]
[398506815,1765764638412,-250.0,0.00014259,2]
[398506817,1765764638422,-250.0,0.00014259,2]
[398506819,1765764638435,-250.0,0.00014259,2]
[398506821,1765764638444,-250.0,0.00014259,2]
[398506823,1765764638454,-250.0,0.00014259,2]
[398506825,1765764638463,-250.0,0.00014259,2]
[398506827,1765764638473,-574.12855637,0.00014259,2]
[398506829,1765764638482,-189.01,0.0001426,2]
[398506831,1765764638493,-157.57,0.0001426,2]
[398506834,1765764638508,-157.57,0.0001426,2]
[398506836,1765764638518,-157.55,0.0001426,2]
[398506838,1765764638527,-890000.0,0.00014267,2]
[398506840,1765764638537,-500.0,0.00014267,2]
[398506842,1765764638546,-500.0,0.00014321,2]
[398506844,1765764638556,-189.013,0.0001436,2]
[398506846,1765764638565,-1001.0,0.0001436,2]
[398506848,1765764638575,-500.0,0.00014366,2]
[398506850,1765764638584,-500.0,0.00014366,2]
[398506852,1765764638593,-500.0,0.00014366,2]
[398506854,1765764638602,-500.0,0.00014366,2]
[398506856,1765764638612,-500.0,0.00014366,2]
[398506858,1765764638625,-500.0,0.00014366,2]
[398506876,1765764638937,-500.0,0.00014366,2]
[398506877,1765764638949,-500.0,0.00014366,2]
[398506878,1765764638959,-500.0,0.00014366,2]
[398506879,1765764638969,-500.0,0.00014366,2]
[398506880,1765764638979,-500.0,0.00014366,2]
[398506881,1765764638988,-500.0,0.00014366,2]
[398506882,1765764638998,-500.0,0.00014366,2]
[398506883,1765764639008,-500.0,0.00014366,2]
[398506884,1765764639017,-500.0,0.00014366,2]
[398506885,1765764639027,-500.0,0.00014366,2]
[398506886,1765764639036,-500.0,0.00014366,2]
[398506887,1765764639046,-500.0,0.00014366,2]
[398506888,1765764639055,-500.0,0.00014366,2]
[398506889,1765764639067,-500.0,0.00014366,2]
[398506890,1765764639077,-500.0,0.00014366,2]
[398506891,1765764639086,-567.84122574,0.00014366,2]
[398506892,1765764639096,-963.74942667,0.00014368,2]
[398506893,1765764639105,-1509.15327663,0.00014368,2]
[398506894,1765764639115,-1500.0,0.00014368,2]
[398506895,1765764639124,-602.7161527,0.000144,2]
[398506896,1765764639135,-3273.6617858,0.00014411,2]
[398506897,1765764639147,-540.16004627,0.00014458,2]
[398506898,1765764639156,-500.64376121,0.00014458,2]
[398506899,1765764639165,-337.67846386,0.00014486,2]
[398506900,1765764639176,-900.0,0.00014768,2]
[398506902,1765764639186,-790.02643461,0.00014795,2]
[398506903,1765764639195,-1500.0,0.00014795,2]
[398506904,1765764639205,-500.0,0.00014815,2]
[398506905,1765764639214,-160.0,0.00014819,3]
[398506907,1765764639224,-420.0,0.00014905,2]
[398506909,1765764639233,-1001.0,0.00014908,2]
[398506911,1765764639243,-2000.0,0.00014916,2]
[398506913,1765764639252,-501.67387724,0.00015,2]
[398506915,1765764639261,-500.0,0.00015,2]
[398506917,1765764639271,-300.0,0.00015061,2]
[398506919,1765764639280,-300.0,0.00015061,2]
[398506921,1765764639289,-300.0,0.00015061,2]
[398506923,1765764639298,-300.0,0.00015061,2]
[398506925,1765764639307,-300.0,0.00015061,2]
[398506927,1765764639317,-300.0,0.00015061,2]
[398506929,1765764639326,-300.0,0.00015061,2]
[398506931,1765764639335,-300.0,0.00015061,2]
[398506933,1765764639345,-300.0,0.00015061,2]
[398506935,1765764639354,-300.0,0.00015061,2]
[398506937,1765764639363,-300.0,0.00015061,2]
[398506939,1765764639372,-300.0,0.00015061,2]
[398506941,1765764639381,-300.0,0.00015061,2]
[398506943,1765764639390,-300.0,0.00015061,2]
[398506945,1765764639400,-300.0,0.00015061,2]
[398506947,1765764639408,-600.0,0.00015061,2]
[398506949,1765764639417,-312.224471,0.00015068,2]
[398506951,1765764639426,-151.0,0.000151,2]
[398506953,1765764639435,-152.1038912,0.00015103,2]
[398506955,1765764639446,-632.0,0.00015158,2]
[398506957,1765764639454,-1364.575,0.00015158,2]
[398506958,1765764639463,-2163.281,0.00015158,2]
[398506961,1765764639473,-418.352,0.00015158,2]
[398506963,1765764639482,-282.82316621,0.00015174,2]
[398506965,1765764639491,-151.0,0.000152,2]
[398506967,1765764639500,-150.295,0.00015295,2]
[398506969,1765764639509,-150.107,0.00015295,2]
[398506971,1765764639518,-150.0,0.00015295,2]
[398506973,1765764639527,-1200.0,0.00015316,2]
[398506975,1765764639536,-100000.0,0.0001532,2]
[398506977,1765764639546,-2000.0,0.00015342,2]
[398506980,1765764639555,-307.2959275,0.00015342,2]
[398506981,1765764639564,-500.0,0.00015363,2]
[398506983,1765764639573,-1001.0,0.00015456,2]
[398506985,1765764639582,-2010.85056849,0.00015464,2]
[398506988,1765764639592,-502.24254995,0.00015468,2]
[398506990,1765764639602,-160.0,0.00015495,4]
[398506992,1765764639610,-160.0,0.00015495,5]
[398506994,1765764639620,-160.0,0.00015495,5]
[398506996,1765764639629,-160.0,0.000155,2]
[398506998,1765764639638,-160.0,0.000155,2]
[398507000,1765764639648,-160.0,0.000155,2]
[398507001,1765764639657,-560.0,0.00015548,2]
[398507003,1765764639667,-549.0,0.00015548,2]
[398507006,1765764639677,-55097.699799,0.00015598,2]
[398507008,1765764639686,-205.900335,0.00015598,2]
[398507010,1765764639695,-161.0,0.000156,2]
[398507012,1765764639704,-162.49797166,0.000156,2]
[398507014,1765764639713,-338.22824611,0.00015604,2]
[398507016,1765764639722,-2128.53305038,0.0001565,2]
[398507017,1765764639732,-2128.53305038,0.00015734,2]
[398507020,1765764639742,-600.0,0.00015776,2]
[398507022,1765764639751,-501.265596,0.0001579,2]
[398507023,1765764639761,-160.0,0.000158,2]
[398507025,1765764639770,-160.0,0.000158,2]
[398507028,1765764639780,-160.0,0.000158,2]
[398507029,1765764639789,-1011.71,0.000158,4]
[398507031,1765764639801,-2128.53305038,0.00015818,2]
[398507034,1765764639810,-1274097.98202814,0.0001584,2]
[398507129,1765764640824,-161.75270971,0.00013599,2]
[398507131,1765764640834,-500.0,0.00013599,2]
[398507133,1765764640843,-495.79229029,0.00014807,2]
[398507161,1765764641092,-3e-08,0.00014807,2]
[398507300,1765764643033,-99.57902264,0.00014807,2]
[398507301,1765764643042,-617.40005154,0.00015355,2]
[398507302,1765764643052,-4286.15591646,0.0001584,2]
[398507320,1765764646038,-8954.79070469,0.0001584,2]
[398507338,1765764649522,-1722.49750075,0.0001584,2]
[398507339,1765764667603,150.0,7.84e-05,2]
[398507340,1765764668489,150.0,8.214e-05,2]
[398507341,1765764668916,150.0,8.587e-05,2]
[398507342,1765764669356,185.9,8.961e-05,2]
[398507343,1765764669775,232.37,9.334e-05,2]
[398507344,1765764670190,278.84,9.707e-05,2]
[398507345,1765764670592,325.32,0.00010081,2]
[398507346,1765764670990,371.79,0.00010454,2]
[398507347,1765764671420,418.26,0.00010827,2]
[398507348,1765764671813,464.74,0.00011201,2]
[398507349,1765764674217,160.30359252,0.00012612,2]
[398507352,1765764748921,1000.0,0.00019,120]
[398507353,1765764771211,150.0,7.123e-05,2]
[398507354,1765764771579,150.0,7.462e-05,2]
[398507355,1765764772017,150.0,7.801e-05,2]
[398507356,1765764772397,150.0,8.14e-05,2]
[398507357,1765764772806,150.0,8.48e-05,2]
[398507358,1765764773248,150.0,8.819e-05,2]
[398507359,1765764783790,500.0,0.00013273,2]
[398507362,1765764835559,1100.0,0.00019,120]
[398507363,1765764841967,5000.0,0.00013556,2]
[398507364,1765764843590,500.0,0.00013273,2]
[398507365,1765764864310,512.48640748,0.00013556,2]
[398507366,1765764901575,150.0,7.202e-05,2]
[398507367,1765764901997,150.0,7.545e-05,2]
[398507368,1765764902418,150.0,7.888e-05,2]
[398507369,1765764903011,155.55,8.231e-05,2]
[398507370,1765764903244,194.44,8.574e-05,2]
[398507371,1765764903759,233.33,8.917e-05,2]
[398507372,1765764904065,272.22,9.26e-05,2]
[398507373,1765764904492,311.1,9.603e-05,2]
[398507374,1765764904898,349.99,9.946e-05,2]
[398507375,1765764905312,388.88,0.00010289,2]
[398507379,1765764971953,150.0,7.207e-05,2]
[398507380,1765764972338,150.0,7.55e-05,2]
[398507381,1765764972748,150.0,7.893e-05,2]
[398507382,1765764973159,169.38,8.236e-05,2]
[398507383,1765764973554,211.72,8.579e-05,2]
[398507384,1765764973957,254.06,8.922e-05,2]
[398507385,1765764974366,296.41,9.266e-05,2]
[398507386,1765764974771,338.75,9.609e-05,2]
[398507387,1765764975430,381.1,9.952e-05,2]
[398507388,1765764975624,423.44,0.00010295,2]
[398507389,1765765043042,150.0,7.202e-05,2]
[398507390,1765765043565,150.0,7.545e-05,2]
[398507391,1765765043967,150.0,7.888e-05,2]
[398507392,1765765044412,150.0,8.231e-05,2]
[398507393,1765765044809,153.92,8.574e-05,2]
[398507394,1765765045226,184.71,8.917e-05,2]
[398507395,1765765045611,215.49,9.26e-05,2]
[398507396,1765765046025,246.28,9.603e-05,2]
[398507397,1765765046409,277.06,9.946e-05,2]
[398507398,1765765046817,307.85,0.00010289,2]
[398507399,1765765058646,3134.33,0.00013553,2]
[398507400,1765765058672,1865.67,0.00013553,2]
[398507401,1765765069136,199.26981938,9.444e-05,2]
[398507402,1765765081371,5000.0,0.00013553,2]
[398507403,1765765093751,500.0,0.00013273,2]
[398507404,1765765103871,223.35364753,9.444e-05,2]
[398507405,1765765103929,2211.71653309,0.00013553,2]
[398507406,1765765111794,160.65,7.232e-05,2]
[398507407,1765765111970,321.3,7.576e-05,2]
[398507408,1765765112608,481.95,7.92e-05,2]
[398507409,1765765112898,642.59,8.265e-05,2]
[398507410,1765765113188,803.24,8.609e-05,2]
[398507411,1765765113597,963.89,8.953e-05,2]
[398507412,1765765114010,1124.54,9.298e-05,2]